Cogmind - Beta 12 @@@ ROGUE MODE // 2023.11.04 @ 06:53:35 Player: Tallim Result: Destroyed by Y-45 Defender with Heavy Assault Rifle Performance ------------- Evolutions (1) 500 Regions Visited (4) 800 Robots Destroyed (41) 205 Value Destroyed (1132) 1132 Prototype IDs (1) 20 Alien Tech Used (0) 0 Bonus (100) 100 TOTAL SCORE: 2757 Bonus ------- High Alert Combat Kills 100 Cogmind --------- Core Integrity 0/400 Matter 290/300 Energy 78/100 System Corruption 11% Temperature Cool (9) Movement Core (100) Ox1 Location -9/Storage Parts ------- > --- POWER (1) -------- (None) > --- PROPULSION (4) --- (None) > --- UTILITY (2) ------ Heat Sink Visual Processing Unit > --- WEAPON (2) ------- Small Laser Beam Rifle > --- INVENTORY (5) ---- Small Storage Unit Peak State ------------ > --- POWER ------------ Light Ion Engine > --- PROPULSION ------- Aluminum Leg Aluminum Leg Aluminum Leg Aluminum Leg > --- UTILITY ---------- Medium Matter Pod Weight Redist. System > --- WEAPON ----------- Particle Gun Rocket Launcher > --- INVENTORY -------- Heavy Ion Engine Small Storage Unit ECM Suite Grenade Launcher [Rating: 12] Favorites ----------- Power Light Ion Engine Engine Light Ion Engine Propulsion Aluminum Leg Leg Aluminum Leg Utility Small Storage Unit Device Weight Redist. System Storage Small Storage Unit Processor Visual Processing Unit Weapon Light Assault Rifle Energy Gun Particle Gun Ballistic Gun Light Assault Rifle Launcher Grenade Launcher Build | -11 -10 -10 -9 -9 ------- Run | Jun Mat Min Mat Sto Slots Evolved 2 | . . . 2 . Power . | . . . . . Propulsion 2 | . . . 2 . Utility . | . . . . . Weapon . | . . . . . Parts Attached 39 | 4 9 . 24 2 Power 3 | 1 1 . 1 . Engine 3 | 1 1 . 1 . Core . | . . . . . Reactor . | . . . . . Propulsion 12 | 2 1 . 9 . Treads . | . . . . . Leg 12 | 2 1 . 9 . Wheel . | . . . . . Hover . | . . . . . Flight . | . . . . . Utility 11 | 1 2 . 6 2 Device 5 | . . . 4 1 Storage 3 | 1 2 . . . Processor 3 | . . . 2 1 Hackware . | . . . . . Protection . | . . . . . Artifact . | . . . . . Weapon 13 | . 5 . 8 . Energy Gun 8 | . 3 . 5 . Energy Cannon . | . . . . . Ballistic Gun 2 | . 1 . 1 . Ballistic Cannon . | . . . . . Launcher 3 | . 1 . 2 . Special Weapon . | . . . . . Impact Weapon . | . . . . . Slashing Weapon . | . . . . . Piercing Weapon . | . . . . . Special Melee Weapon . | . . . . . Unidentified Prototypes 1 | . . . 1 . Parts Lost 22 | . 2 . 20 . Power 4 | . 1 . 3 . Propulsion 9 | . . . 9 . Utility 2 | . . . 2 . Weapon 7 | . 1 . 6 . Highest Loss Streak 6 | . 2 . 6 . To Critical Strikes . | . . . . . Average Slot Usage (%) 79 | . 89 100 77 34 Engine 8 | . 9 14 8 . Leg 27 | . 28 28 31 . Device 5 | . . . 9 8 Storage 13 | . 27 28 5 . Processor 3 | . . . 6 3 Energy Gun 12 | . 10 14 10 22 Ballistic Gun 6 | . 11 14 2 . Launcher 2 | . . . 3 . Naked Turns . | . . . . . Heaviest Build 14 | 8 14 14 14 6 Greatest Support 46 | 20 20 20 46 3 Greatest Overweight (x) 1 | . . . 1 1 Average Overweight (x) . | . . . . 1 Largest Inventory Capacity 8 | 8 8 8 8 5 Average Capacity 6 | 7 8 8 5 5 Most Carried 5 | 3 5 3 5 2 Average Carried 2 | 1 2 3 2 1 Final Capacity 8 | 8 8 8 5 5 Final Carried 3 | 3 3 3 1 1 Class Distribution -------------------- 76% | Mutant 23% | Scavenger-Mutant Dominant Class ---------------- Mutant | -10/Materials Mutant | -10/Mines Mutant | -9/Materials Mutant | -9/Storage Resources | -11 -10 -10 -9 -9 ----------- Run | Jun Mat Min Mat Sto Matter Collected 734 | 206 160 . 358 10 Remotely . | . . . . . Salvage Created 1178 | . 201 . 918 59 Parts 75 | . 8 . 63 4 Haulers Intercepted 2 | . . . 2 . Recyclers Shooed 1 | . . . . 1 Parts Field Recycled . | . . . . . Retrieved Matter . | . . . . . Parts Self-Destructed . | . . . . . Prevented . | . . . . . Kills | -11 -10 -10 -9 -9 ------- Run | Jun Mat Min Mat Sto Combat Hostiles Destroyed 32 | . 6 . 25 1 Guns 20 | . 3 . 16 1 AOE 12 | . 3 . 9 . Classes Destroyed 8 | . 2 . 6 . Worker 2 | . 1 . 1 . Builder 3 | . . . 3 . Hauler 2 | . . . 2 . Recycler 1 | . . . 1 . Watcher 1 | . . . 1 . Swarmer 7 | . . . 7 . Grunt 21 | . 6 . 15 . Sentry 4 | . . . 3 1 Best Kill Streak 14 | . 5 . 14 1 Combat Bots Only 8 | . 4 . 8 1 Max Kills in Single Turn 3 | . 2 . 3 1 Gunslinging . | . . . . . Exploded 2 | . 2 . 2 . Melee . | . . . . . Uniques/NPCs Destroyed . | . . . . . Combat | -11 -10 -10 -9 -9 -------- Run | Jun Mat Min Mat Sto Damage Taken 2061 | . 389 . 1578 94 Core 471 | . 65 . 314 92 Absorbed by Shields . | . . . . . Core Remaining (%) 87 | 100 . 74 . . Volleys Fired 92 | . 17 . 71 4 Largest 2 | . 2 . 2 2 Hottest 98 | . 60 . 98 96 Shots Fired 137 | . 33 1 95 8 Gun 119 | . 30 1 80 8 Cannon . | . . . . . Launcher 18 | . 3 . 15 . Special . | . . . . . Kinetic 29 | . 17 . 12 . Thermal 85 | . 13 1 63 8 Explosive 18 | . 3 . 15 . Electromagnetic 5 | . . . 5 . Robot Hit Streak 15 | . 9 3 15 8 Robot Miss Streak 5 | . 1 . 5 2 Penetration Max . | . . . . . Secondary Targets 1 | . . . 1 . Max Gunslinging Chain 1 | . . . 1 . Shots Hit Robots 92 | . 25 1 61 5 Core Hits 91 | . 16 . 73 2 Critical Kills . | . . . . . Critical Parts Destroyed . | . . . . . Critical Strikes . | . . . . . Melee Attacks . | . . . . . Impact . | . . . . . Slashing . | . . . . . Piercing . | . . . . . Sneak Attacks . | . . . . . Combat Hostiles . | . . . . . Follow-up Attacks . | . . . . . Damage Inflicted 2115 | . 436 . 1611 68 Guns 1043 | . 199 . 780 64 Cannons . | . . . . . Explosions 1062 | . 237 . 825 . Melee . | . . . . . Ramming 10 | . . . 6 4 Kinetic 116 | . 69 . 47 . Thermal 967 | . 130 . 773 64 Explosive 973 | . 237 . 736 . Electromagnetic 49 | . . . 49 . Impact . | . . . . . Slashing . | . . . . . Piercing . | . . . . . Highest Corruption 11 | . 1 1 11 11 Average Corruption 7 | . 1 1 11 11 Corruption Purged . | . . . . . Corruption Blocked . | . . . . . Effects 24 | . 1 2 17 4 Message Errors 6 | . 1 . 4 1 Matter Fused 4 | . . . 4 . Energy Discharges 1 | . . . . 1 Parts Rejected 2 | . . . 1 1 Data Loss (minor) 2 | . . . 2 . Data Loss (major) 2 | . . 1 . 1 Misfires 3 | . . 1 2 . Alerts 1 | . . . 1 . Misdirections 1 | . . . 1 . Weapon Failures 2 | . . . 2 . Overload Shots . | . . . . . Overflow Damage 31 | . 4 . 27 . Projectiles . | . . . . . Explosions 31 | . 4 . 27 . Melee . | . . . . . Knockbacks . | . . . . . Impact . | . . . . . Kinetic . | . . . . . Secondary . | . . . . . Self-Inflicted Damage 226 | . . . 224 2 Shots 10 | . . . 10 . Rammed 3 | . . . 1 2 Targets Rammed 4 | . . . 2 2 Kicked 1 | . . . 1 . Crushed . | . . . . . Highest Temperature 193 | . 94 28 193 42 Average Temperature 44 | . 41 16 47 22 Received Heat Transfer 747 | . 246 . 465 36 Siege Activations . | . . . . . Robots Corrupted . | . . . . . Combat Hostiles . | . . . . . Parts Fried . | . . . . . Impact Corruptions . | . . . . . Robots Melted . | . . . . . Combat Hostiles . | . . . . . Parts Melted . | . . . . . Heat Transferred 1738 | . 300 . 1289 149 Parts Sabotaged . | . . . . . Parts Stolen . | . . . . . Parts Stripped . | . . . . . Power Chain Reactions 1 | . . . 1 . Missiles Intercepted . | . . . . . Alert | -11 -10 -10 -9 -9 ------- Run | Jun Mat Min Mat Sto Peak Influence 630 | . 199 77 630 308 Initial 233 | . . 77 29 233 Average 240 | . 93 77 367 260 Maximum Alert Level 2 | . . . 2 1 Low Security (%) 54 | 100 100 100 28 . Level 1 12 | . . . 8 100 Level 2 32 | . . . 63 . Level 3 . | . . . . . Level 4 . | . . . . . Level 5 . | . . . . . High Security . | . . . . . Max Security . | . . . . . Squads Dispatched 6 | . 1 . 5 . Investigation 1 | . . . 1 . Extermination . | . . . . . Reinforcement 4 | . 1 . 3 . Assault 1 | . . . 1 . Garrison . | . . . . . Intercept . | . . . . . Searches Triggered . | . . . . . Construction Impeded 1 | . . . 1 . Haulers Reinforced . | . . . . . Active Scanning Responses . | . . . . . Cargo Convoy Interrupts . | . . . . . Stealth | -11 -10 -10 -9 -9 --------- Run | Jun Mat Min Mat Sto Distress Signals 5 | . 1 . 4 . Communications Jammed . | . . . . . Distress Signals . | . . . . . Times Spotted 56 | . 9 . 45 2 Peak Tracking Total 6 | . 4 . 6 1 Tactical Retreats 1 | . 1 . . . Traps | -11 -10 -10 -9 -9 ------- Run | Jun Mat Min Mat Sto Traps Triggered 2 | . 1 . 1 . Indirectly . | . . . . . Trap Hack Attempts . | . . . . . Triggered . | . . . . . Disarmed . | . . . . . Reprogrammed . | . . . . . Reused . | . . . . . Traps Extracted . | . . . . . Installed . | . . . . . Triggered . | . . . . . Machines | -11 -10 -10 -9 -9 ---------- Run | Jun Mat Min Mat Sto Machines Disabled 6 | . . . 5 1 Max in Single Turn 1 | . . . 1 1 Machines Repaired . | . . . . . Machines Sabotaged . | . . . . . Overloaded Fab Kills . | . . . . . Hacking | -11 -10 -10 -9 -9 --------- Run | Jun Mat Min Mat Sto Machines Accessed 4 | . 1 . 3 . Terminals 2 | . 1 . 1 . Fabricators . | . . . . . Repair Stations . | . . . . . Recycling Units 1 | . . . 1 . Scanalyzers 1 | . . . 1 . Garrison Access . | . . . . . Total Hacks 11 | . 2 . 9 . Successful 9 | . 2 . 7 . Failed 2 | . . . 2 . Catastrophic . | . . . . . Database Lockouts . | . . . . . Manual . | . . . . . Terminals 5 | . 2 . 3 . Fabricators . | . . . . . Repair Stations . | . . . . . Recycling Units 4 | . . . 4 . Scanalyzers 2 | . . . 2 . Garrison Access . | . . . . . Terminal Hacks 4 | . 2 . 2 . Record 3 | . 2 . 1 . Recycling Unit Index 1 | . . . 1 . Fabricator Hacks . | . . . . . Repair Station Hacks . | . . . . . Recycling Unit Hacks 3 | . . . 3 . Recycle Component 1 | . . . 1 . Process 1 | . . . 1 . Report Inventory 1 | . . . 1 . Scanalyzer 2 | . . . 2 . Insert Component 1 | . . . 1 . Analyze 1 | . . . 1 . Garrison Access Hacks . | . . . . . Unauthorized Hacks . | . . . . . Terminals . | . . . . . Fabricators . | . . . . . Repair Stations . | . . . . . Recycling Units . | . . . . . Scanalyzers . | . . . . . Garrison Access . | . . . . . Data Cores Recovered . | . . . . . Used . | . . . . . Hacking Detections 3 | . 1 . 2 . Full Trace Events 1 | . . . 1 . Feedback Events . | . . . . . Feedback Blocked . | . . . . . Robot Schematics Acquired . | . . . . . Robots Built . | . . . . . Authchips . | . . . . . Time . | . . . . . Total Robot Build Rating . | . . . . . Part Schematics Acquired 1 | . . . 1 . Parts Built . | . . . . . Authchips . | . . . . . Time . | . . . . . Total Part Build Rating . | . . . . . Parts Repaired . | . . . . . Time . | . . . . . Parts Recycled 1 | . . . 1 . Recycled Matter 237 | . . . 237 . Retrieved Matter . | . . . . . Retrieved Components . | . . . . . Parts Scanalyzed 1 | . . . 1 . Part Schematics Acquired 1 | . . . 1 . Parts Damaged . | . . . . . Bothacking | -11 -10 -10 -9 -9 ------------ Run | Jun Mat Min Mat Sto Used RIF Installer . | . . . . . Robots Hacked . | . . . . . Non-combat . | . . . . . Combat . | . . . . . Robot Hacks Applied . | . . . . . Relay Couplers Released . | . . . . . Fabnet Peak Effective % . | . . . . . Robots Rewired . | . . . . . Allies Hacked . | . . . . . Hacks Repelled . | . . . . . Allies | -11 -10 -10 -9 -9 -------- Run | Jun Mat Min Mat Sto Total Allies . | . . . . . Largest Group . | . . . . . Highest-Rated Group . | . . . . . Highest-Rated Ally . | . . . . . Total Orders . | . . . . . Ally Attacks . | . . . . . Total Damage . | . . . . . Kills . | . . . . . Allies Corrupted . | . . . . . Allies Melted . | . . . . . Intel | -11 -10 -10 -9 -9 ------- Run | Jun Mat Min Mat Sto Robot Analysis Total . | . . . . . Derelict Logs Recovered 1 | . . 1 . . Drone Launches . | . . . . . Drone Recoveries . | . . . . . Exploration | -11 -10 -10 -9 -9 ------------- Run | Jun Mat Min Mat Sto Turns Passed 1150 | 60 246 158 587 99 Spaces Moved 713 | 48 135 132 316 82 Core 138 | 11 . . 45 82 Treads . | . . . . . Legs 575 | 37 135 132 271 . Wheels . | . . . . . Hover . | . . . . . Flight . | . . . . . Fastest Speed 50 | 50 120 120 50 100 Average Speed 114 | 103 120 120 115 100 Slowest Speed 120 | 120 120 120 120 100 Overloaded Moves . | . . . . . Propulsion Burnouts . | . . . . . Robots Hopped . | . . . . . Cave-ins Triggered 1 | . . . 1 . Exploration Rate (%) 24 | 4 23 36 34 25 Regions Visited 4 Branch Regions 2 Pre-discovered Areas 1 | . . 1 . . Known Exits Taken . | . . . . . Unknown Exits Taken 4 | 1 1 1 1 . Scrap Searched . | . . . . . Spaces Dug . | . . . . . Terrain Destroyed 116 | . 28 . 88 . Melee . | . . . . . Projectile . | . . . . . AOE 116 | . 28 . 88 . Terrain Rammed . | . . . . . Walls Destroyed . | . . . . . Machines Disabled . | . . . . . Actions | -11 -10 -10 -9 -9 --------- Run | Jun Mat Min Mat Sto Total 910 | 58 188 131 441 92 Wait 32 | . 21 . 11 . Move 709 | 47 134 131 315 82 Hop . | . . . . . Pick Up 31 | 7 6 . 16 2 Fast Attach 3 | . . . 3 . Attach 27 | 4 5 . 16 2 Detach . | . . . . . Swap 10 | . 4 . 6 . Drop 2 | . 1 . 1 . Fire 92 | . 17 . 71 4 Melee . | . . . . . Ram 3 | . . . 1 2 Kick 1 | . . . 1 . Crush . | . . . . . Escape Stasis . | . . . . . Rewire . | . . . . . Trap . | . . . . . Miscellaneous . | . . . . . Route ------- -11/Junkyard -10/Materials -10/Mines -9/Materials (discovered 3 exits: Mat / [*Min] / *Sto) -9/Storage History --------- Turn | Location | Event 3 | -11/Junkyard | Discovered new exit (range 15) 61 | -11/Junkyard | Entered Materials 209 | -10/Materials | Discovered new exit (range 13) 307 | -10/Materials | Entered Mines 325 | -10/Mines | Discovered new exit (range 9) 326 | -10/Mines | Learned location of Storage (-9) 326 | -10/Mines | Build established: Mutant 377 | -10/Mines | Learned location of 1 exit from Materials 465 | -10/Mines | Entered Materials 465 | -9/Materials | Evolved 2 slots: Propulsion x2 466 | -9/Materials | Identified exit to Materials 651 | -9/Materials | Discovered new exit (range 12) 667 | -9/Materials | Destroyed 8 combat bots 695 | -9/Materials | Crushed by falling debris 695 | -9/Materials | System corruption reached 10% 730 | -9/Materials | Lost 6 parts (2p1n1u2w) 862 | -9/Materials | Lost 4 parts (2n2w) 865 | -9/Materials | First assault squad dispatched 945 | -9/Materials | Core integrity fell below 50% 973 | -9/Materials | Lost 5 parts (1p3n1w) 982 | -9/Materials | Discovered new exit (range 16) 1052 | -9/Materials | Entered Storage 1096 | -9/Storage | Core integrity fell below 20% 1151 | -9/Storage | Destroyed by Y-45 Defender with Heavy Assault Rifle Last Messages --------------- GOAL=ESCAPE 01068_ System corrupted: Substantial component data lost. 01070_ Connecting with Repair Station... 01070_ Current location identified: Storage 01086_ K-01 Serf collects debris. 01093_ System corrupted: ECM Suite rejected. 01098_ Y-45 Defender destroyed. 01108_ R-06 Scavenger collects Hvy. Assault Rifle. 01109_ Acquired Heat Sink. 01111_ R-06 Scavenger collects Lgt. Treads. 01111_ Acquired 10 matter. 01112_ Slammed into R-06 Scavenger. 01119_ R-06 Scavenger collects ECM Suite. 01120_ System corrupted: Energy discharge (-28). 01122_ K-01 Serf collects debris. 01124_ Acquired Visual Processing Unit. 01127_ K-01 Serf collects debris. 01136_ A%5WOUZF4DA&BUO2T J<% 5LVRFB6V1OBYGDXNA 01136_ K-01 Serf collects debris. 01146_ Transport Mainframe disabled. Map ----- +----------------------------------------------------+ | ???????????????????????????????????????????? | | ???????????????????????????????????????????? | | ???????????????????????????????????????????? | | ???????????????????????????????????????????? | | ???????????????????????????????????????????? | | ???????????????????????????????????????????? | | ???????????????????????????????????????????? | | ???????????????????????????????????????????? | | ???????????????????????????????????????????? | | ???????????????????????????????????????????? | | ???????????????????????????????????????????? | | ???????????????????????????????????????????? | | ???????????????????????????????????????????? | | ???????????????????????????????????????????? | | ???????????????????????????????????????????? | | ???????????????????????????????????????????? | | ???????????????????????????????????????????? | | ???????????????????????????????????????????? | | ???????????????????#####???????????????????? | | ?????????????????###Y#T#####???????????????? | | ?????????????????# #???????????????? | | ?????????????????# #???????????????? | | ?????????????????# # ??????????????? | | ?????????????????# """ + ??????????????? | | ?????????????????# """" #????????+#####?? | | ?????????????????# @"""" #????????? #?? | | ?????????????????# """" #????????? #?? | | ?????????????????# #????????? #?? | | ?????????????????####+######?????????# #?? | | ????????????????????# #??########????# #?? | | ?????????????######## #??# % #????# #?? | | ?????????????# # #??# ! #????# #?? | | ?????????????# # #### #????# #?? | | ?????????????# + + ! #????# #?? | | ?????????????# # # #????# ### | | ?????????????# # # #????# | | ?????????????# # ####+######## ### | | ?????????????########+# #??# %%% #?? | | ??????????????????????# #??# ######+##?? | | ??????????????????????# #??? ?? | | ??????????????????????+ #? | | ??????????????????????# ## """ """ | | ??????????????????????# ## """ """ | | ??????????????????????# + """ """ | | ??????????????????????##T########## | | ???????????????????????###????????# | | ????????????????????????????????????? ?? | | ??????????????????????????????????????#"T??? | | ???????????????????????????????????????##??? | | ???????????????????????????????????????????? | +----------------------------------------------------+ Best States ------------- Heat Dissipation 38 Energy Generation 10 Energy Capacity 125 Matter Stores 329 Matter Capacity 400 Sight Range 18 Terrain Scan Density 10 ECM Strength 1 Additional Mass Support 6 Evasion (%) 55 Item Schematics ----------------- Aluminum Leg | -9/Materials | Scanalyzed Robot Schematics ------------------ None Fabricated ------------ Nothing Alien Tech Used ----------------- None Achievements -------------- Risk Taker Significant Disruption Unlikely Earthworm Challenges ------------ None Game ------ Seed ProcessingSensorStreamer Manual? 0 Play Time 00:23:23 Cumulative 10.6 hours Start 2023.11.04 @ 06:30:42 End 2023.11.04 @ 06:53:35 Sessions 1 Manual Loads 0 Difficulty Rogue Special Mode None Game No. 31 Rogue 31 Adventurer 0 Explorer 0 Win Type - Total 0 Types 0/0/0/0/0/0/0/0/0 Lore% 8 Gallery% 18 Achievement% 6 Wizard Run 0 Options --------- ASCII 0 Keyboard 0 Movement Mouse Keybinds 0 Fullscreen 1 Font 18/SmallcapsGlow Map View 76x50 Tactical HUD 1 Map Filters NONE Filters NONE Steam 1 RUN: 36b89673-60c5-4ea7-b20b-f084f203f1b5